Cogmind - Beta 16.1 @@@ ROGUE MODE // 2026.03.11 @ 21:53:03 Player: Kaisercar Result: Self-destructed Performance ------------- Evolutions (7) 3500 Regions Visited (18) 3600 Robots Destroyed (229) 1145 Value Destroyed (12522) 12522 Prototype IDs (28) 560 Alien Tech Used (0) 0 Bonus (5871) 5871 TOTAL SCORE: 27198 Bonus ------- High Alert Combat Kills 1602 Follower Combat Kills 238 Entered Garrisons 400 Entered DSFs 500 Aligned with FarCom 300 Acquired ECA 300 Met Warlord at Base 500 MAIN.C Attacked Warlord 500 Warlord Defense Kills 1852 Friendly Fire -321 Cogmind --------- Core Integrity 752/1300 Matter 252/300 Energy 1082/1840 System Corruption 6% Temperature Cool (35) Movement Treading (160) Location -3/Research Parts ------- > --- POWER (2) -------- Particle Reactor > --- PROPULSION (6) --- Medium Treads Medium Treads Medium Treads Medium Treads > --- UTILITY (9) ------ Advanced Heat Sink Advanced Heat Sink Advanced Cooling System High-capacity Storage Unit Superbattery Advanced Targeting Computer Advanced Thermal Shield Improved Hacking Suite > --- WEAPON (4) ------- Quantum Rifle Quantum Rifle Quantum Rifle Quantum Rifle > --- INVENTORY (20) --- Neutrino Core Myomer Leg Improved Thunder Leg Advanced Heat Sink Advanced Terrain Scan Processor Focal Shield Mini Drone Bay (3/3) Quantum Rifle Quantum Rifle Vortex Cannon (26) Hardcell Cannon Vortex Catalyst Activator Phasing Sabre Peak State ------------ > --- POWER ------------ Improved Deuterium Engine Particle Reactor > --- PROPULSION ------- Medium Treads Medium Treads Medium Treads Medium Treads Medium Treads Medium Treads > --- UTILITY ---------- Advanced Heat Sink Advanced Heat Sink Advanced Cooling System High-capacity Storage Unit Superbattery Advanced Targeting Computer Advanced Phase Shifter Advanced Thermal Shield Improved Hacking Suite > --- WEAPON ----------- Quantum Rifle Quantum Rifle Quantum Rifle Railgun > --- INVENTORY -------- Neutrino Core Particle Reactor Myomer Leg Improved Thunder Leg Advanced Heat Sink Advanced Terrain Scan Processor Focal Shield Mini Drone Bay Quantum Rifle Quantum Rifle Quantum Rifle Vortex Cannon Hardcell Cannon Vortex Catalyst Activator Phasing Sabre [Rating: 129] Favorites ----------- Power Improved Deuterium Engine Engine Improved Deuterium Engine Power Core Micro Fission Core Reactor Light Antimatter Reactor Propulsion Aluminum Leg Treads Heavy Siege Treads Leg Aluminum Leg Utility Advanced Heat Sink Device Advanced Heat Sink Storage Large Storage Unit Processor Advanced Targeting Computer Hackware Improved Hacking Suite Protection Heavy Armor Plating Weapon Thermic Laser Energy Gun Thermic Laser Energy Cannon Heavy Plasma Cannon Ballistic Gun Railgun Ballistic Cannon Hardcell Cannon Launcher Long-range Missile Launcher Slashing Weapon Makeshift Sword Build | -11 -10 -10 -10 -9 -8 -7 -7 -6 -6 -5 -4 -4 -4 -4 -3 -3 -3 -3 ------- Run | Yrd Mat Min Exi Min Mat Fac DSF Fac Gar Fac Fac Upp Upp War Pro Res Gar Res Slots Evolved 14 | . . . . . 4 2 . 2 . 2 2 . . . . 2 . . Power 1 | . . . . . . . . . . . 1 . . . . . . . Propulsion 4 | . . . . . 2 1 . . . . 1 . . . . . . . Utility 7 | . . . . . 2 . . 2 . 2 . . . . . 1 . . Weapon 2 | . . . . . . 1 . . . . . . . . . 1 . . Parts Attached 223 | 7 8 8 1 4 28 2 22 31 13 4 5 2 6 15 13 1 48 5 Power 24 | 1 . 1 . 2 2 . . 2 2 . 1 . 1 4 1 . 7 . Engine 10 | 1 . 1 . 2 2 . . 2 2 . . . . . . . . . Core 4 | . . . . . . . . . . . 1 . 1 1 1 . . . Reactor 10 | . . . . . . . . . . . . . . 3 . . 7 . Propulsion 72 | 2 2 3 1 1 9 1 13 8 3 . 3 . . 8 1 . 17 . Treads 13 | 2 . . . . . . . . . . 3 . . . . . 8 . Leg 59 | . 2 3 1 1 9 1 13 8 3 . . . . 8 1 . 9 . Wheel . | . . . . . . . . . . . . . . . . . . . Hover . | . . . . . . . . . . . . . . . . . . . Flight . | . . . . . . . . . . . . . . . . . . . Utility 64 | 2 4 1 . . 7 . 4 12 5 4 . 1 3 1 6 1 10 3 Device 39 | 1 2 1 . . 4 . 2 7 3 3 . . 2 . 5 1 7 1 Storage 7 | 1 2 . . . 1 . . 1 . . . 1 1 . . . . . Processor 5 | . . . . . 1 . 1 1 . . . . . . 1 . . 1 Hackware 6 | . . . . . . . . 3 1 1 . . . . . . . 1 Protection 7 | . . . . . 1 . 1 . 1 . . . . 1 . . 3 . Artifact . | . . . . . . . . . . . . . . . . . . . Weapon 63 | 2 2 3 . 1 10 1 5 9 3 . 1 1 2 2 5 . 14 2 Energy Gun 37 | . 2 2 . . 5 1 3 5 3 . . 1 1 . 3 . 9 2 Energy Cannon 9 | . . 1 . 1 2 . . 3 . . . . . 1 1 . . . Ballistic Gun 10 | 2 . . . . 1 . 1 . . . 1 . 1 1 1 . 2 . Ballistic Cannon 1 | . . . . . . . . . . . . . . . . . 1 . Launcher 3 | . . . . . 1 . 1 1 . . . . . . . . . . Special Weapon . | . . . . . . . . . . . . . . . . . . . Impact Weapon . | . . . . . . . . . . . . . . . . . . . Slashing Weapon 3 | . . . . . 1 . . . . . . . . . . . 2 . Piercing Weapon . | . . . . . . . . . . . . . . . . . . . Special Melee Weapon . | . . . . . . . . . . . . . . . . . . . Unidentified Prototypes 5 | . . . . . 3 . . 1 . . . . . 1 . . . . Parts Lost 81 | . 1 1 . 1 3 . 3 10 3 2 2 . 5 4 16 . 22 8 Power 12 | . . . . 1 1 . . 1 1 . . . 1 1 1 . 2 3 Propulsion 27 | . . 1 . . 2 . . 5 . 2 . . . . 6 . 9 2 Utility 24 | . . . . . . . 3 3 1 . 1 . 2 1 6 . 5 2 Weapon 18 | . 1 . . . . . . 1 1 . 1 . 2 2 3 . 6 1 Highest Loss Streak 8 | . 1 1 . 1 1 . 2 3 2 2 2 . 4 3 6 . 6 8 To Critical Strikes . | . . . . . . . . . . . . . . . . . . . Average Backups 13 | 4 9 14 14 15 14 13 14 13 12 4 4 9 10 11 14 10 16 18 Power 1 | . 1 1 2 3 3 2 . . . . . 1 1 1 2 2 3 2 Propulsion 1 | 2 2 5 3 3 1 1 2 1 . . . 1 2 1 . . . 1 Utility 4 | . 1 3 4 4 5 7 8 6 5 1 2 3 4 5 5 5 7 6 Weapon 4 | . 4 4 5 5 4 3 2 5 6 2 2 3 2 3 5 3 5 7 Tool/Special . | . . . . . . . . . . . . . . . . . . . Unused Backups 40 | . 3 1 3 1 9 . 5 5 2 . . . . 3 . . 3 5 Power 6 | . . . 1 . 3 . 2 . . . . . . . . . . . Propulsion 9 | . . 1 1 . . . 3 . . . . . . 2 . . . 2 Utility 14 | . 1 . 1 . 5 . . 2 2 . . . . 1 . . 1 1 Weapon 11 | . 2 . . 1 1 . . 3 . . . . . . . . 2 2 Tool/Special . | . . . . . . . . . . . . . . . . . . . Average Slot Usage (%) 93 | . 100 100 100 99 98 99 98 98 99 93 80 83 83 80 96 76 90 92 Engine 6 | . 14 14 14 13 8 7 7 5 6 5 5 5 5 4 . . . . Core 1 | . . . . . . . . . . . 4 5 4 4 1 4 . . Reactor 1 | . . . . . . . . . . . . . . . 8 4 8 8 Treads 5 | . 16 . . . . . . . . . 13 15 15 12 . . 9 27 Leg 21 | . 11 28 28 28 35 38 38 32 32 25 1 . . 4 30 14 15 . Device 16 | . 14 14 14 14 15 7 4 19 13 19 19 16 18 15 19 14 18 14 Storage 8 | . 14 14 14 14 9 7 7 6 12 5 5 8 10 10 5 4 4 4 Processor 4 | . . . . . 7 7 12 6 6 5 5 5 5 5 6 9 4 2 Hackware 3 | . . . . . . . . 5 6 5 5 5 5 5 5 4 4 6 Protection 1 | . . . . . 3 7 3 . . 5 5 5 1 . 1 . 4 5 Energy Gun 12 | . 11 22 14 14 9 14 19 15 15 13 10 8 6 5 7 9 14 14 Energy Cannon 3 | . . 5 14 14 7 . . . . . 3 1 3 2 2 4 . . Ballistic Gun 2 | . 16 . . . . . 2 . . . 1 4 5 6 4 4 1 . Slashing Weapon 1 | . . . . . 1 7 . 3 2 3 . . . . . . . 2 Peak Build Rating 129 | 7 11 13 14 17 35 37 56 76 73 82 110 118 118 119 119 93 123 129 Average Rating 67 | 5 8 12 13 14 30 36 49 67 71 74 104 116 114 107 113 92 111 119 On Entrance 60 | . 7 9 12 14 17 32 37 56 64 69 75 108 117 113 117 86 93 119 Avg Prop Armor Cover (%) 6 | . . . . . . . . . . . . . . 11 . . 5 . Naked Turns . | . . . . . . . . . . . . . . . . . . . Heaviest Build 134 | 12 29 32 32 35 52 48 56 56 53 41 52 85 95 112 105 90 134 130 Greatest Support 210 | 40 40 20 20 20 47 50 88 100 85 80 210 210 210 210 151 78 168 168 Greatest Overweight (x) 2 | . 1 1 1 1 1 . 1 . . . . . . 1 1 1 2 . Average Overweight (x) . | . . 1 1 1 . . . . . . . . . . . 1 . . Largest Inventory Capacity 20 | 8 15 15 15 15 15 15 15 15 15 5 5 20 20 20 20 20 20 20 Average Capacity 15 | 7 10 15 15 15 15 15 15 15 13 5 5 15 20 20 20 20 20 20 Most Carried 20 | 6 12 15 15 15 15 14 15 15 15 5 5 14 14 20 20 12 20 20 Average Carried 13 | 4 9 14 14 15 14 13 14 13 12 4 4 9 10 12 15 11 17 19 Final Capacity 20 | 8 15 15 15 15 15 15 15 15 5 5 5 20 20 20 20 20 20 20 Final Carried 20 | 5 11 15 15 15 15 14 15 12 5 5 5 13 9 20 12 12 20 14 Class Distribution -------------------- 27% | Scavenger-Mutant 18% | Mutant 11% | Scavenger-Tank 10% | Skirmisher 9% | Tank 7% | Scavenger-Gunner 7% | Derelict-Tank Dominant Class ---------------- Mutant | -10/Materials Scavenger-Mutant | -10/Mines Scavenger-Mutant | -10/Exiles Mutant | -9/Mines Scavenger-Mutant | -8/Materials Scavenger-Mutant | -7/Factory Scavenger-Skirmisher | -7/DSF Skirmisher | -6/Factory Skirmisher | -6/Garrison Scavenger-Assassin | -5/Factory Tank | -4/Factory Tank | -4/Upper Caves Derelict-Tank | -4/Upper Caves Derelict-Tank | -4/Warlord Scavenger-Gunner | -3/Proximity Caves Scavenger-Gunner | -3/Research Scavenger-Tank | -3/Garrison Scavenger-Tank | -3/Research Resources | -11 -10 -10 -10 -9 -8 -7 -7 -6 -6 -5 -4 -4 -4 -4 -3 -3 -3 -3 ----------- Run | Yrd Mat Min Exi Min Mat Fac DSF Fac Gar Fac Fac Upp Upp War Pro Res Gar Res Matter Collected 5401 | 317 276 189 . 45 659 . 268 561 713 50 136 234 280 468 218 . 827 160 Remotely 10 | . . . . . . . . . . . . . 10 . . . . . Salvage Created 12029 | 174 381 358 . 94 1199 . 391 1648 1817 68 430 430 255 784 470 . 2911 619 Parts 446 | 14 36 16 . 6 64 . 15 54 52 . 19 8 2 37 15 . 92 16 Haulers Intercepted 7 | . . . . . 4 . . 2 . . 1 . . . . . . . Recyclers Shooed 3 | . . . . . 1 . . 2 . . . . . . . . . . Parts Field Recycled . | . . . . . . . . . . . . . . . . . . . Retrieved Matter . | . . . . . . . . . . . . . . . . . . . Parts Self-Destructed 30 | . . . . . . . . . . . . 8 2 . 20 . . . Prevented . | . . . . . . . . . . . . . . . . . . . Parts Restored . | . . . . . . . . . . . . . . . . . . . Kills | -11 -10 -10 -10 -9 -8 -7 -7 -6 -6 -5 -4 -4 -4 -4 -3 -3 -3 -3 ------- Run | Yrd Mat Min Exi Min Mat Fac DSF Fac Gar Fac Fac Upp Upp War Pro Res Gar Res Combat Hostiles Destroyed 197 | . 11 8 . 3 23 . 9 28 29 1 4 6 5 12 8 . 43 7 Guns 118 | . 11 8 . 2 7 . 7 13 11 1 3 1 4 7 5 . 33 5 Cannons 27 | . . . . 1 8 . . 2 2 . . 2 . 3 2 . 7 . AOE 29 | . . . . . 8 . 2 5 10 . . 3 . 1 . . . . Classes Destroyed 24 | 2 4 1 . 1 4 . 2 4 . . 1 . . 4 . . 1 . Worker 5 | . . . . . 1 . . 4 . . . . . . . . . . Builder 2 | . . . . . . . . 2 . . . . . . . . . . Tunneler 4 | 4 . . . . . . . . . . . . . . . . . . Hauler 7 | . . . . . 4 . . 2 . . 1 . . . . . . . Recycler 5 | 1 . 1 . . 1 . . 1 . . . . . . . . . 1 Mechanic 1 | . . . . . 1 . . . . . . . . . . . . . Operator 2 | . 1 . . . 1 . . . . . . . . . . . . . Watcher 4 | . 2 . . . 1 . . 1 . . . . . . . . . . Swarmer 42 | . 3 . . . 7 . 3 10 10 . . . 2 . 2 . 5 . Cutter 3 | . . . . . . . . . . . . . . . . . 3 . Grunt 88 | . 8 6 . 2 12 . 2 8 15 . . 4 . 3 3 . 22 3 Brawler 2 | . . . . . . . . 1 . . . . . . . . 1 . Duelist 4 | . . . . 1 . . . 2 . . . . . . . . . 1 Protector 2 | . . . . . . . . . . . . . . 2 . . . . Sentry 25 | . . . . . 5 . 1 1 4 . 1 1 1 . . . 10 1 Demolisher 2 | . . 2 . . . . . . . . . . . . . . . . Specialist 4 | . . . . . . . 2 . . . . . . 2 . . . . Hunter 10 | . . . . . . . . 1 . 1 2 . 2 2 2 . . . Programmer 10 | . . . . . . . . 5 . . . 1 . 1 1 . . 2 Heavy 1 | . . . . . . . 1 . . . . . . . . . . . Behemoth 3 | . . . . . . . . . . . 1 . . . . . 2 . Striker 1 | . . . . . . . . . . . . . . 1 . . . . Executioner 1 | . . . . . . . . . . . . . . 1 . . . . Mutant 1 | . . . . . . . . . . . . . . 1 . . . . Best Kill Streak 8 | 5 3 2 . 3 4 . 7 8 5 1 3 5 3 4 3 . 6 5 Combat Bots Only 7 | . 3 2 . 3 4 . 7 7 5 1 3 5 3 4 3 . 6 4 Max Kills in Single Turn 4 | 1 2 2 . 1 4 . 2 3 3 1 1 2 1 1 1 . 2 1 Gunslinging 1 | . 1 . . . . . . 1 1 . . . . . . . 1 . Exploded 4 | . . . . . 4 . 2 2 3 . . 2 . 1 . . . . Melee . | . . . . . . . . . . . . . . . . . . . Uniques/NPCs Destroyed . | . . . . . . . . . . . . . . . . . . . Combat | -11 -10 -10 -10 -9 -8 -7 -7 -6 -6 -5 -4 -4 -4 -4 -3 -3 -3 -3 -------- Run | Yrd Mat Min Exi Min Mat Fac DSF Fac Gar Fac Fac Upp Upp War Pro Res Gar Res Hostile Shots Fired 1530 | . 50 24 . 20 81 . 110 311 115 9 63 25 90 78 132 . 295 127 Missed 498 | . 10 6 . 7 23 . 42 135 45 2 15 5 22 27 35 . 89 35 Hits 1032 | . 40 18 . 13 58 . 68 176 70 7 48 20 68 51 97 . 206 92 Melee 11 | . . . . 2 . . . 4 . . . . . 1 . . 4 . Projectile 1021 | . 40 18 . 11 58 . 68 172 70 7 48 20 68 50 97 . 202 92 AOE 2 | . . 2 . . . . . . . . . . . . . . . . Critical Strikes 38 | . 1 1 . 1 7 . 2 1 2 . 3 2 2 . 4 . 6 6 Damage Taken 17202 | . 464 314 . 180 1130 . 1142 2491 1005 129 621 381 1028 1160 1837 . 3741 1579 Core 1853 | . 116 15 . 57 216 . 210 302 83 16 37 79 32 61 81 . 471 77 Absorbed by Shields 834 | . . . . . . . . . . . 246 60 234 168 . . 126 . Reduced by Siege Mode 117 | . . . . . . . . . . . . . 117 . . . . . Ignored by Resistances 1223 | . . . . . 50 . 2 . . . . . . . 63 . 835 273 Regen/Repaired (Parts) 504 | . . . . . 137 . . . . . . . . 367 . . . . Core Remaining (%) 68 | 100 . . . 24 60 . 70 . 54 98 . . . . 74 . . . Volleys Fired 642 | 13 48 17 . 13 105 . 21 80 64 3 29 15 19 40 30 3 116 26 Largest 4 | 2 2 2 . 2 2 . 3 3 3 3 3 3 3 3 3 1 4 4 Hottest 376 | 40 85 130 . 125 150 . 185 260 260 241 250 200 191 200 218 90 332 376 Shots Fired 1560 | 26 80 34 . 24 186 . 58 199 135 9 64 31 51 93 85 3 391 91 Gun 1278 | 26 80 30 . 11 84 . 53 182 104 9 39 22 46 74 75 . 354 89 Cannon 243 | . . 4 . 13 91 . 4 15 12 . 25 6 5 16 10 3 37 2 Launcher 39 | . . . . . 11 . 1 2 19 . . 3 . 3 . . . . Special . | . . . . . . . . . . . . . . . . . . . Kinetic 267 | 26 46 . . . . . 5 . . . 11 11 22 48 22 . 61 15 Thermal 1208 | . 34 34 . 24 175 . 52 197 116 9 53 17 29 42 54 3 293 76 Explosive 39 | . . . . . 11 . 1 2 19 . . 3 . 3 . . . . Electromagnetic 28 | . . . . . . . . . . . . . . . 5 . 23 . Entropic 18 | . . . . . . . . . . . . . . . 4 . 14 . Robot Hit Streak 29 | 11 7 11 . 9 15 . 11 20 21 19 6 6 18 16 29 . 23 20 Robot Miss Streak 6 | 2 5 4 . 4 5 . 1 5 6 . 3 2 3 4 4 . 5 2 Penetration Max 1 | . . . . . . . . . . . . . . 1 . . 1 1 Secondary Targets 27 | . 2 . . . . . 4 4 1 . . . 2 . 3 . 7 4 Max Gunslinging Chain 1 | . 1 . . . . . 1 1 1 . . . 1 . 1 . 1 1 Shots Hit Robots 1074 | 19 53 22 . 19 119 . 46 135 99 9 32 21 43 66 56 . 264 71 Core Hits 587 | 8 39 27 . 12 69 . 19 67 74 3 14 12 15 56 20 . 131 21 Critical Kills 2 | . . . . . . . . . . . . . . 1 . . 1 . Critical Parts Destroyed 2 | . . . . . . . . . . . . . . . . . 1 1 Critical Strikes 74 | . 2 . . . 1 . 2 24 12 . 2 1 1 1 2 . 25 1 Burn 59 | . 2 . . . 1 . 2 24 11 . 2 1 1 . 1 . 14 . Meltdown 1 | . . . . . . . . . . . . . . 1 . . . . Destroy 3 | . . . . . . . . . . . . . . . . . 2 1 Corrupt 1 | . . . . . . . . . . . . . . . . . 1 . Sever 1 | . . . . . . . . . 1 . . . . . . . . . Sunder 9 | . . . . . . . . . . . . . . . 1 . 8 . Melee Attacks 137 | . . . . . 19 2 . 55 37 5 . . . . . . 9 10 Impact . | . . . . . . . . . . . . . . . . . . . Slashing 137 | . . . . . 19 2 . 55 37 5 . . . . . . 9 10 Piercing . | . . . . . . . . . . . . . . . . . . . Sneak Attacks 3 | . . . . . 1 . . 2 . . . . . . . . . . Combat Hostiles . | . . . . . . . . . . . . . . . . . . . Follow-up Attacks . | . . . . . . . . . . . . . . . . . . . Damage Inflicted 29467 | 198 753 363 . 317 3164 . 1146 3505 4294 194 750 960 921 2902 1327 . 6457 2216 Guns 19186 | 198 753 322 . 167 980 . 863 2520 1534 194 484 308 794 1602 1097 . 5154 2216 Cannons 4655 | . . 35 . 143 1477 . 108 221 225 . 258 201 127 327 230 . 1303 . Explosions 4325 | . . . . . 601 . 175 568 1549 . 8 451 . 973 . . . . Melee 1281 | . . . . . 106 . . 189 986 . . . . . . . . . Ramming 20 | . . 6 . 7 . . . 7 . . . . . . . . . . Kinetic 4035 | 198 327 . . . . . 58 . . . 141 147 360 1155 343 . 976 330 Thermal 18240 | . 426 357 . 310 2457 . 913 2741 1759 194 601 362 561 774 746 . 4153 1886 Explosive 4317 | . . . . . 601 . 175 568 1549 . . 451 . 973 . . . . Electromagnetic 534 | . . . . . . . . . . . 8 . . . 103 . 423 . Impact . | . . . . . . . . . . . . . . . . . . . Slashing 1281 | . . . . . 106 . . 189 986 . . . . . . . . . Piercing . | . . . . . . . . . . . . . . . . . . . Entropic 1040 | . . . . . . . . . . . . . . . 135 . 905 . Highest Corruption 6 | . . . . . 1 . . 4 4 . . . . 1 3 . . 6 Average Corruption 2 | . . . . . 1 . . 2 4 . . . . 1 2 . . 3 Corruption Purged . | . . . . . . . . . . . . . . . . . . . Corruption Blocked . | . . . . . . . . . . . . . . . . . . . Effects 71 | . . . . . 7 . . 32 23 . . . . 1 5 . . 3 Message Errors 11 | . . . . . . . . 6 4 . . . . . 1 . . . Matter Fused 17 | . . . . . 1 . . 8 7 . . . . 1 . . . . Heat Flow Errors 11 | . . . . . 2 . . 3 4 . . . . . 1 . . 1 Energy Discharges 9 | . . . . . . . . 4 4 . . . . . 1 . . . Parts Rejected 1 | . . . . . . . . 1 . . . . . . . . . . Data Loss (minor) 12 | . . . . . 3 . . 6 1 . . . . . 1 . . 1 Data Loss (major) 3 | . . . . . . . . 3 . . . . . . . . . . Misfires 3 | . . . . . . . . . 1 . . . . . 1 . . 1 Alerts 2 | . . . . . 1 . . . 1 . . . . . . . . . Weapon Failures 2 | . . . . . . . . 1 1 . . . . . . . . . Overload Shots . | . . . . . . . . . . . . . . . . . . . Overflow Damage 258 | . . . . 7 32 . . 33 127 . . 55 . 4 . . . . Projectiles 66 | . . . . 7 32 . . . 23 . . . . 4 . . . . Explosions 144 | . . . . . . . . 28 61 . . 55 . . . . . . Melee 48 | . . . . . . . . 5 43 . . . . . . . . . Knockbacks 2 | . . . . . . . . . . . . . . . . . 2 . Impact . | . . . . . . . . . . . . . . . . . . . Kinetic 2 | . . . . . . . . . . . . . . . . . 2 . Secondary . | . . . . . . . . . . . . . . . . . . . Self-Inflicted Damage 302 | . . . . . 52 . . 136 97 . . . . 17 . . . . Shots 8 | . . . . . 2 . . 2 3 . . . . 1 . . . . Rammed . | . . . . . . . . . . . . . . . . . . . Targets Rammed 6 | . . 3 . 2 . . . 1 . . . . . . . . . . Kicked 6 | . . 3 . 2 . . . 1 . . . . . . . . . . Crushed . | . . . . . . . . . . . . . . . . . . . Highest Temperature 658 | . 324 206 . 102 301 . 658 251 353 . 510 189 192 213 336 . 375 443 Average Temperature 114 | . 94 82 . 37 99 . 148 87 175 . 237 69 81 89 104 . 91 141 Received Heat Transfer 3553 | . 252 162 . 66 591 . 144 459 231 . 27 53 39 220 283 . 691 335 Effects 15 | . 2 . . . . . 6 . . . 5 . . . . . 1 1 Shutdowns 6 | . . . . . . . 2 . . . 3 . . . . . . 1 Energy Bleed 2 | . . . . . . . 1 . . . . . . . . . 1 . Interference 2 | . 2 . . . . . . . . . . . . . . . . . Matter Decay 2 | . . . . . . . . . . . 2 . . . . . . . Short Circuit 2 | . . . . . . . 2 . . . . . . . . . . . Damage (major) 1 | . . . . . . . 1 . . . . . . . . . . . Siege Activations 1 | . . . . . . . . . . . . . 1 . . . . . Total Turns 27 | . . . . . . . . . . . . . 27 . . . . . Longest Duration 27 | . . . . . . . . . . . . . 27 . . . . . Martial Activations . | . . . . . . . . . . . . . . . . . . . Shielding Activations . | . . . . . . . . . . . . . . . . . . . Robots Disrupted . | . . . . . . . . . . . . . . . . . . . Combat Hostiles . | . . . . . . . . . . . . . . . . . . . Robots Corrupted . | . . . . . . . . . . . . . . . . . . . Combat Hostiles . | . . . . . . . . . . . . . . . . . . . Parts Fried 2 | . . . . . . . . . . . . . . . 1 . 1 . Impact Corruptions . | . . . . . . . . . . . . . . . . . . . Robots Melted 25 | . . . . . . . . 10 6 . 1 . 1 1 1 . 3 2 Combat Hostiles 23 | . . . . . . . . 8 6 . 1 . 1 1 1 . 3 2 Parts Melted 111 | . 2 3 . . 2 . 1 37 16 6 1 1 6 5 3 . 20 8 Heat Transferred 40059 | . 914 629 . 501 4173 . 1776 9180 4958 411 1400 724 1183 1454 1436 . 9026 2294 Parts Sabotaged . | . . . . . . . . . . . . . . . . . . . Parts Stolen . | . . . . . . . . . . . . . . . . . . . Parts Stripped . | . . . . . . . . . . . . . . . . . . . Power Chain Reactions . | . . . . . . . . . . . . . . . . . . . Alert | -11 -10 -10 -10 -9 -8 -7 -7 -6 -6 -5 -4 -4 -4 -4 -3 -3 -3 -3 ------- Run | Yrd Mat Min Exi Min Mat Fac DSF Fac Gar Fac Fac Upp Upp War Pro Res Gar Res Maximum Alert Level 5 | . . . . . 1 . . 2 5 3 1 . . . . . 4 3 Low Security (%) 58 | 100 100 100 . 100 99 100 100 50 . . . . . . . 100 11 . Level 1 7 | . . . . . . . . 16 . . 100 . . . . . 9 . Level 2 15 | . . . . . . . . 33 16 . . . . . . . 33 85 Level 3 13 | . . . . . . . . . 48 100 . . . . . . 34 14 Level 4 4 | . . . . . . . . . 29 . . . . . . . 10 . Level 5 . | . . . . . . . . . 5 . . . . . . . . . High Security . | . . . . . . . . . . . . . . . . . . . Max Security . | . . . . . . . . . . . . . . . . . . . Sterilizations 1 | . . . . . . . 1 . . . . . . . . . . . Peak Influence 1718 | 10 177 98 . 50 204 63 172 676 1718 903 371 . . . . 12 1282 720 Initial 901 | . . 62 . . . 63 6 90 476 901 371 . . . . . . 720 Average 335 | 1 44 15 . 9 79 36 100 276 1069 832 310 . . . . . 667 652 Influence Increases 7321 | 25 363 226 . 128 940 16 196 1308 1312 38 162 160 110 330 180 16 1582 229 Destroy 0b10 Robot/C 4020 | . 220 160 . 100 500 . 180 560 580 20 80 120 100 200 160 . 900 140 Destroy 0b10 Robot/NC 200 | 25 15 5 . . 45 . . 50 35 . 5 5 . 10 . . . 5 Destroy Leader 562 | . 54 40 . 20 130 . 10 116 10 10 32 20 10 . 20 . 60 30 Allied During Kill 94 | . . 6 . 8 18 . . . 29 . . . . . . . 33 . Successful Hack 117 | . 14 . . . 18 14 . 19 18 . . . . . . 12 22 . Select Force Hacks 30 | . 30 . . . . . . . . . . . . . . . . . Disable Machine 240 | . 15 . . . 45 . . 60 30 . 15 . . . . . 45 30 Anti-Garrison Action 750 | . . . . . . . . . 300 . . . . . . . 450 . Destroy Structure 573 | . . . . . 109 2 6 98 220 8 30 . . . . 4 72 24 Partial Spotted 15 | . . . . . . . . 15 . . . . . . . . . . Lose Combat Pursuer 720 | . 15 15 . . 75 . . 390 90 . . 15 . 120 . . . . Influence Decreases 6674 | 25 202 361 26 128 800 147 33 800 274 997 598 483 110 124 386 16 300 864 Entered New Map 2584 | . . 99 26 . . 77 3 82 204 817 388 120 . . 206 . . 562 Time Decay 2910 | 25 192 214 . 128 498 70 . 558 . 160 190 363 90 84 100 16 . 222 Lost Part 683 | . 10 10 . . 23 . 30 100 30 20 20 . 20 40 80 . 220 80 Lost Ally 188 | . . 38 . . 20 . . 10 40 . . . . . . . 80 . Purge Threat 309 | . . . . . 259 . . 50 . . . . . . . . . . Squads Dispatched 31 | . 3 . . . 3 . 2 16 . 1 4 . . . . . . 2 Investigation 5 | . 1 . . . . . . 3 . . 1 . . . . . . . Extermination 6 | . . . . . . . . 5 . . 1 . . . . . . . Reinforcement 15 | . 2 . . . 3 . 2 5 . . 2 . . . . . . 1 Assault 2 | . . . . . . . . . . 1 . . . . . . . 1 Garrison 3 | . . . . . . . . 3 . . . . . . . . . . Intercept . | . . . . . . . . . . . . . . . . . . . Searches Triggered . | . . . . . . . . . . . . . . . . . . . Construction Impeded 1 | . . . . . 1 . . . . . . . . . . . . . Haulers Reinforced 2 | . . . . . . . . 1 . . 1 . . . . . . . Active Scanning Responses . | . . . . . . . . . . . . . . . . . . . Cargo Convoy Interrupts . | . . . . . . . . . . . . . . . . . . . Stealth | -11 -10 -10 -10 -9 -8 -7 -7 -6 -6 -5 -4 -4 -4 -4 -3 -3 -3 -3 --------- Run | Yrd Mat Min Exi Min Mat Fac DSF Fac Gar Fac Fac Upp Upp War Pro Res Gar Res Distress Signals 12 | . . . . . 3 . . 5 . 1 . . . 1 . . . 2 Communications Jammed . | . . . . . . . . . . . . . . . . . . . Distress Signals . | . . . . . . . . . . . . . . . . . . . Times Spotted 347 | . 20 8 . 4 44 . 11 57 32 4 9 6 5 73 13 . 44 17 Peak Tracking Total 17 | . 3 2 . 3 5 . 6 10 4 2 3 4 3 17 4 . 6 4 Tactical Retreats 28 | . 1 1 . . 3 . . 13 6 . . 1 . 3 . . . . Traps | -11 -10 -10 -10 -9 -8 -7 -7 -6 -6 -5 -4 -4 -4 -4 -3 -3 -3 -3 ------- Run | Yrd Mat Min Exi Min Mat Fac DSF Fac Gar Fac Fac Upp Upp War Pro Res Gar Res Traps Triggered 17 | . . . . . 1 . 2 3 . 2 2 . . . . . 7 . Indirectly . | . . . . . . . . . . . . . . . . . . . Trap Hack Attempts . | . . . . . . . . . . . . . . . . . . . Triggered . | . . . . . . . . . . . . . . . . . . . Disarmed . | . . . . . . . . . . . . . . . . . . . Reprogrammed . | . . . . . . . . . . . . . . . . . . . Reused . | . . . . . . . . . . . . . . . . . . . Traps Extracted . | . . . . . . . . . . . . . . . . . . . Installed . | . . . . . . . . . . . . . . . . . . . Triggered . | . . . . . . . . . . . . . . . . . . . Machines | -11 -10 -10 -10 -9 -8 -7 -7 -6 -6 -5 -4 -4 -4 -4 -3 -3 -3 -3 ---------- Run | Yrd Mat Min Exi Min Mat Fac DSF Fac Gar Fac Fac Upp Upp War Pro Res Gar Res Machines Disabled 25 | . 1 . . . 3 . . 4 6 . 1 . . . . . 8 2 Max in Single Turn 4 | . 1 . . . 1 . . 4 1 . 1 . . . . . 1 1 Garrison Access 2 | . . . . . 1 . . . . 1 . . . . . . . . Garrison Relay 9 | . . . . . . . . . 4 . . . . . . . 5 . Machines Repaired . | . . . . . . . . . . . . . . . . . . . Machines Dismantled . | . . . . . . . . . . . . . . . . . . . Machines Sabotaged . | . . . . . . . . . . . . . . . . . . . Overloaded Fab Kills . | . . . . . . . . . . . . . . . . . . . Hacking | -11 -10 -10 -10 -9 -8 -7 -7 -6 -6 -5 -4 -4 -4 -4 -3 -3 -3 -3 --------- Run | Yrd Mat Min Exi Min Mat Fac DSF Fac Gar Fac Fac Upp Upp War Pro Res Gar Res Machines Accessed 36 | . 5 . 1 . 10 3 . 7 2 1 1 . . 1 . 2 3 . Terminals 22 | . 4 . . . 5 3 . 3 2 . 1 . . . . 1 3 . Fabricators . | . . . . . . . . . . . . . . . . . . . Repair Stations 2 | . . . . . 2 . . . . . . . . . . . . . Recycling Units 3 | . 1 . . . 1 . . 1 . . . . . . . . . . Scanalyzers 1 | . . . . . 1 . . . . . . . . . . . . . Garrison Access 6 | . . . . . 1 . . 3 . 1 . . . . . 1 . . Total Hacks 75 | . 11 . 1 . 24 5 . 18 3 2 2 . . 1 . 2 6 . Successful 44 | . 6 . 1 . 16 3 . 9 2 1 . . . 1 . 2 3 . Failed 30 | . 5 . . . 7 2 . 9 1 1 2 . . . . . 3 . Catastrophic 9 | . 1 . . . 2 . . 3 . 1 1 . . . . . 1 . Database Lockouts 1 | . . . . . 1 . . . . . . . . . . . . . Manual 29 | . 7 . 1 . 6 4 . 6 . . . . . . . 1 4 . Terminals 45 | . 9 . . . 9 5 . 10 3 . 2 . . . . 1 6 . Fabricators . | . . . . . . . . . . . . . . . . . . . Repair Stations 7 | . . . . . 7 . . . . . . . . . . . . . Recycling Units 6 | . 2 . . . 3 . . 1 . . . . . . . . . . Scanalyzers 3 | . . . . . 3 . . . . . . . . . . . . . Garrison Access 12 | . . . . . 2 . . 7 . 2 . . . . . 1 . . Terminal Hacks 22 | . 2 . 1 . 6 3 . 5 2 . . . . 1 . . 2 . Robot Analysis 4 | . 2 . . . . 2 . . . . . . . . . . . . Open Door 3 | . . . . . . . . . 1 . . . . 1 . . 1 . Open DSF 1 | . . . . . . 1 . . . . . . . . . . . . Emergency Access Points 1 | . . . . . . . . . 1 . . . . . . . . . Unreport Threat 4 | . . . . . 2 . . 2 . . . . . . . . . . Patrol Status 1 | . . . . . 1 . . . . . . . . . . . . . Hauler Manifests 2 | . . . . . 1 . . 1 . . . . . . . . . . Zone Layout 4 | . . . . . 2 . . 2 . . . . . . . . . . Garrison Registry 1 | . . . . . . . . . . . . . . . . . 1 . Proto ID Catalog 1 | . . . 1 . . . . . . . . . . . . . . . Fabricator Hacks . | . . . . . . . . . . . . . . . . . . . Repair Station Hacks 5 | . . . . . 5 . . . . . . . . . . . . . Scan Component 3 | . . . . . 3 . . . . . . . . . . . . . Repair 2 | . . . . . 2 . . . . . . . . . . . . . Recycling Unit Hacks 3 | . 1 . . . 1 . . 1 . . . . . . . . . . Retrieve Components 3 | . 1 . . . 1 . . 1 . . . . . . . . . . Scanalyzer 2 | . . . . . 2 . . . . . . . . . . . . . Retrieve Study 2 | . . . . . 2 . . . . . . . . . . . . . Garrison Access Hacks 4 | . . . . . 1 . . 1 . 1 . . . . . 1 . . Unlock Access 2 | . . . . . . . . 1 . . . . . . . 1 . . Seal Access 2 | . . . . . 1 . . . . 1 . . . . . . . . Unauthorized Hacks 8 | . 3 . . . 1 . . 2 . . . . . . . 1 1 . Terminals 7 | . 2 . . . 1 . . 2 . . . . . . . 1 1 . Assimilate 1 | . . . . . . . . 1 . . . . . . . . . . Botnet 5 | . 1 . . . 1 . . 1 . . . . . . . 1 1 . Skim 1 | . 1 . . . . . . . . . . . . . . . . . Fabricators . | . . . . . . . . . . . . . . . . . . . Repair Stations . | . . . . . . . . . . . . . . . . . . . Recycling Units 1 | . 1 . . . . . . . . . . . . . . . . . Tunnel 1 | . 1 . . . . . . . . . . . . . . . . . Scanalyzers . | . . . . . . . . . . . . . . . . . . . Garrison Access . | . . . . . . . . . . . . . . . . . . . Data Cores Recovered . | . . . . . . . . . . . . . . . . . . . Used . | . . . . . . . . . . . . . . . . . . . Hacking Detections 25 | . 4 . . . 6 3 . 5 2 . 1 . . . . 2 2 . Full Trace Events 4 | . 1 . . . . . . 2 . . 1 . . . . . . . Feedback Events . | . . . . . . . . . . . . . . . . . . . Feedback Blocked . | . . . . . . . . . . . . . . . . . . . Robot Schematics Acquired . | . . . . . . . . . . . . . . . . . . . Robots Built . | . . . . . . . . . . . . . . . . . . . Authchips . | . . . . . . . . . . . . . . . . . . . Time . | . . . . . . . . . . . . . . . . . . . Total Robot Build Rating . | . . . . . . . . . . . . . . . . . . . Part Schematics Acquired . | . . . . . . . . . . . . . . . . . . . Parts Built . | . . . . . . . . . . . . . . . . . . . Authchips . | . . . . . . . . . . . . . . . . . . . Time . | . . . . . . . . . . . . . . . . . . . Total Part Build Rating . | . . . . . . . . . . . . . . . . . . . Part Studies Acquired 2 | . . . . . 2 . . . . . . . . . . . . . Parts Repaired 2 | . . . . . 2 . . . . . . . . . . . . . Time 58 | . . . . . 58 . . . . . . . . . . . . . Parts Recycled . | . . . . . . . . . . . . . . . . . . . Recycled Matter . | . . . . . . . . . . . . . . . . . . . Retrieved Matter . | . . . . . . . . . . . . . . . . . . . Retrieved Components 15 | . 3 . . . 10 . . 2 . . . . . . . . . . Parts Scanalyzed . | . . . . . . . . . . . . . . . . . . . Part Schematics Acquired . | . . . . . . . . . . . . . . . . . . . Parts Damaged . | . . . . . . . . . . . . . . . . . . . Bothacking | -11 -10 -10 -10 -9 -8 -7 -7 -6 -6 -5 -4 -4 -4 -4 -3 -3 -3 -3 ------------ Run | Yrd Mat Min Exi Min Mat Fac DSF Fac Gar Fac Fac Upp Upp War Pro Res Gar Res Used RIF Installer . | . . . . . . . . . . . . . . . . . . . Robots Hacked . | . . . . . . . . . . . . . . . . . . . Non-combat . | . . . . . . . . . . . . . . . . . . . Combat . | . . . . . . . . . . . . . . . . . . . Robot Hacks Applied . | . . . . . . . . . . . . . . . . . . . Relay Couplers Released 34 | . . . . . . . . . 15 . . . . . . . 19 . Machine Destruction 34 | . . . . . . . . . 15 . . . . . . . 19 . Fabnet Peak Effective % . | . . . . . . . . . . . . . . . . . . . Robots Rewired 4 | . . . . . . . . . . . . . . . . . 4 . Allies Hacked . | . . . . . . . . . . . . . . . . . . . Hacks Repelled . | . . . . . . . . . . . . . . . . . . . Allies | -11 -10 -10 -10 -9 -8 -7 -7 -6 -6 -5 -4 -4 -4 -4 -3 -3 -3 -3 -------- Run | Yrd Mat Min Exi Min Mat Fac DSF Fac Gar Fac Fac Upp Upp War Pro Res Gar Res Total Allies 12 | . . 2 . 3 . . . 1 2 . . . . . . . 4 . Largest Group 4 | . . 2 . 3 3 . . 1 2 . . . . . . . 4 . Highest-Rated Group 168 | . . 46 . 40 40 . . 10 75 . . . . . . . 168 . Highest-Rated Ally 46 | . . 31 . 16 16 . . 10 46 . . . . . . . 46 . Initial Warlord ECA Mod 23 | . . . . . . . . 9 9 16 15 15 15 15 14 14 14 23 Total Orders 4 | . . . . . 2 . . . . . . . . . 2 . . . STAY 1 | . . . . . 1 . . . . . . . . . . . . . FOLLOW 1 | . . . . . 1 . . . . . . . . . . . . . EXPLORE 2 | . . . . . . . . . . . . . . . 2 . . . Ally Attacks 69 | . . 1 . 7 28 . . . 7 . . . . . . . 26 . Total Damage 1230 | . . 20 . 78 236 . . . 130 . . . . . . . 766 . Kills 7 | . . . . 2 3 . . . . . . . . . . . 2 . Allies Corrupted . | . . . . . . . . . . . . . . . . . . . Allies Melted 3 | . . . . 1 . . . . 1 . . . . . . . 1 . Intel | -11 -10 -10 -10 -9 -8 -7 -7 -6 -6 -5 -4 -4 -4 -4 -3 -3 -3 -3 ------- Run | Yrd Mat Min Exi Min Mat Fac DSF Fac Gar Fac Fac Upp Upp War Pro Res Gar Res Active Infowar (turns) 7917 | 21 978 17 . . 1590 146 298 2109 3 325 380 1039 710 222 79 . . . Sensors 2038 | . . . . . 1 . . . . . . 1026 710 222 79 . . . Terrain 2628 | . . . . . . . . 672 3 325 380 1039 209 . . . . . Seismic 1016 | 21 978 17 . . . . . . . . . . . . . . . . Machine Analysis 3470 | . . . . . 1589 146 298 1437 . . . . . . . . . . Robot Analysis Total 4 | . 2 . . . . 2 . . . . . . . . . . . . Derelict Logs Recovered 6 | . . 2 . 1 . . . . . . . 1 2 . . . . . Drone Launches 4 | . . . . . . . . . . . . . . . 4 . . . Drone Recoveries 4 | . . . . . . . . . . . . . . . 4 . . . Exploration | -11 -10 -10 -10 -9 -8 -7 -7 -6 -6 -5 -4 -4 -4 -4 -3 -3 -3 -3 ------------- Run | Yrd Mat Min Exi Min Mat Fac DSF Fac Gar Fac Fac Upp Upp War Pro Res Gar Res Turns Passed 16514 | 141 1132 1437 414 790 1929 146 298 2200 1253 328 382 1039 710 1169 484 177 2016 469 Spaces Moved 8520 | 58 428 625 215 386 993 133 157 1400 770 242 171 541 350 575 302 90 881 203 Core 3 | 3 . . . . . . . . . . . . . . . . . . Treads 2293 | 55 195 . . . . . . . . . 138 541 350 488 . . 323 203 Legs 6224 | . 233 625 215 386 993 133 157 1400 770 242 33 . . 87 302 90 558 . Wheels . | . . . . . . . . . . . . . . . . . . . Hover . | . . . . . . . . . . . . . . . . . . . Flight . | . . . . . . . . . . . . . . . . . . . Fastest Speed 50 | 50 120 190 190 190 107 105 108 118 120 120 120 180 180 116 116 186 117 160 Average Speed 149 | 154 152 190 190 190 135 105 117 119 120 120 168 180 180 174 116 186 159 160 Slowest Speed 320 | 160 190 190 190 190 192 105 175 120 120 120 180 180 180 190 186 186 320 160 Overloaded Moves . | . . . . . . . . . . . . . . . . . . . Propulsion Burnouts . | . . . . . . . . . . . . . . . . . . . Robots Hopped . | . . . . . . . . . . . . . . . . . . . Potential Cave-ins 6 | . . . . . . . . . 1 . . . . 5 . . . . Cave-ins Triggered . | . . . . . . . . . . . . . . . . . . . Exploration Rate (%) 51 | 3 71 92 60 73 70 5 93 45 71 8 7 77 58 65 92 3 80 7 Regions Visited 18 Branch Regions 7 Pre-discovered Areas 5 | . 1 2 . 1 . . . . . . . 1 . . . . . . Known Exits Taken 4 | . . . . . 1 1 . 1 . . . . . . . 1 . . Unknown Exits Taken 11 | 1 1 1 1 1 . . . . . 1 1 1 1 1 1 . . . Scrap Searched 12 | . . 3 . 2 . . . . . . . 3 1 . 3 . . . Spaces Dug 208 | . . . . . 51 2 8 56 71 4 2 . . . 1 1 2 10 Terrain Destroyed 590 | . . . . . 124 2 10 106 221 4 18 38 6 24 5 3 13 16 Melee 88 | . . . . . 16 2 . 50 5 4 . . . . . . 2 9 Projectile 79 | . . . . . 17 . 2 9 . . 18 . 6 1 5 3 11 7 AOE 423 | . . . . . 91 . 8 47 216 . . 38 . 23 . . . . Terrain Rammed . | . . . . . . . . . . . . . . . . . . . Walls Destroyed . | . . . . . . . . . . . . . . . . . . . Machines Disabled . | . . . . . . . . . . . . . . . . . . . Actions | -11 -10 -10 -10 -9 -8 -7 -7 -6 -6 -5 -4 -4 -4 -4 -3 -3 -3 -3 --------- Run | Yrd Mat Min Exi Min Mat Fac DSF Fac Gar Fac Fac Upp Upp War Pro Res Gar Res Total 10859 | 83 831 840 223 420 1372 137 239 1717 943 265 213 579 389 666 371 96 1205 270 Wait 853 | . 321 173 . 8 155 . . 88 17 . 2 6 9 10 13 . 39 12 Move 8504 | 57 427 624 214 385 992 132 156 1400 769 241 170 540 349 574 301 90 880 203 Hop . | . . . . . . . . . . . . . . . . . . . Pick Up 144 | 6 14 8 4 2 17 1 10 19 8 2 1 10 2 13 6 1 18 2 Fast Attach 83 | 6 1 1 . 2 10 . 2 9 4 7 6 1 . 6 . . 26 2 Attach 74 | 1 3 1 . . 5 2 3 10 2 1 1 1 6 7 13 1 12 5 Detach 8 | . . . . . 1 . . 1 1 . . . . 3 . . 2 . Swap 194 | . 7 6 1 2 39 . 23 31 30 3 1 4 3 6 7 1 24 6 Drop 155 | . 10 7 4 5 29 . 24 23 11 3 3 2 1 7 1 . 21 4 Fire 642 | 13 48 17 . 13 105 . 21 80 64 3 29 15 19 40 30 3 116 26 Melee 137 | . . . . . 19 2 . 55 37 5 . . . . . . 9 10 Ram . | . . . . . . . . . . . . . . . . . . . Kick 6 | . . 3 . 2 . . . 1 . . . . . . . . . . Crush . | . . . . . . . . . . . . . . . . . . . Escape Stasis 25 | . . . . . . . . . . . . . . . . . 25 . Rewire 34 | . . . . 1 . . . . . . . . . . . . 33 . Trap . | . . . . . . . . . . . . . . . . . . . Miscellaneous . | . . . . . . . . . . . . . . . . . . . Route ------- -11/Scrapyard -10/Materials (discovered 3 exits: [*Mat x2] / [*Min]) -10/Mines (discovered 4 exits: [*Mat x2] / *Exi / [*Sub]) -10/Exiles -9/Mines (discovered 2 exits: *Mat x2) -8/Materials (discovered 2 exits: *Fac x2) -7/Factory -7/DSF -6/Factory -6/Garrison (discovered 3 exits: *Fac x2 / [*Fac]) -5/Factory -4/Factory -4/Upper Caves -4/Upper Caves (discovered 2 exits: *Res / *War) -4/Warlord -3/Proximity Caves -3/Research -3/Garrison (discovered 3 exits: [*Res x3]) -3/Research History --------- Turn | Location | Event 6 | -11/Scrapyard | Discovered new exit (range 14) 142 | -11/Scrapyard | Entered Materials 301 | -10/Materials | Build established: Mutant 768 | -10/Materials | Discovered new exit (range 8) 1009 | -10/Materials | Discovered new exit (range 6) 1253 | -10/Materials | Discovered new exit (range 7) 1274 | -10/Materials | Entered Mines 1286 | -10/Mines | Discovered new exit (range 11) 1398 | -10/Mines | Assembled infested the area 1590 | -10/Mines | Build established: Scavenger-Mutant 1610 | -10/Mines | Discovered new exit (range 6) 1682 | -10/Mines | Core integrity fell below 50% 1741 | -10/Mines | A weapon hastily lodged in a ceiling crevice suddenly fell to the ground 1750 | -10/Mines | Learned location of Zion (-7) 2113 | -10/Mines | Discovered new exit (range 11) 2635 | -10/Mines | Deemed a non-threat by the Exiles lab entrance 2703 | -10/Mines | Discovered new exit (range 5) 2711 | -10/Mines | Entered Exiles 2765 | -10/Exiles | Met 8R-AWN 2797 | -10/Exiles | Met EX-HEX 2860 | -10/Exiles | Met EX-BIN 2881 | -10/Exiles | Aligned with FarCom system 2883 | -10/Exiles | Given EX-Vault access code 2930 | -10/Exiles | Opened EX-Vault 2942 | -10/Exiles | Found Superbattery 2980 | -10/Exiles | Warned to stay clear of 0b10 Research branches 3035 | -10/Exiles | Met EX-DEC 3104 | -10/Exiles | Discovered new exit (range 12) 3125 | -10/Exiles | Left Exiles lab with Superbattery 3125 | -10/Exiles | Entered Mines 3163 | -9/Mines | Met a Derelict bent on vengeance 3301 | -9/Mines | Discovered new exit (range 10) 3571 | -9/Mines | Discovered new exit (range 5) 3592 | -9/Mines | Assisted by bots powering up and referring to "LRC-V3" 3594 | -9/Mines | Learned location of 1 exit from Materials 3752 | -9/Mines | Found a damaged Exp. Sensor Array with a note attached 3756 | -9/Mines | Found Prototype Device 3839 | -9/Mines | Build established: Mutant 3915 | -9/Mines | Entered Materials 3915 | -8/Materials | Accompanied by 3 allies 3915 | -8/Materials | Evolved 4 slots: Propulsion x2, Utility x2 3916 | -8/Materials | Identified exit to Factory 3918 | -8/Materials | Identified Exp. Sensor Array 4276 | -8/Materials | Build established: Scavenger-Mutant 4404 | -8/Materials | Discovered exit to Factory (range 15) 4696 | -8/Materials | Repaired Imp. Ion Engine 4819 | -8/Materials | Central database locked down 5194 | -8/Materials | Repaired Aluminum Leg+ 5844 | -8/Materials | Entered Factory 5844 | -7/Factory | Evolved 2 slots: Propulsion x1, Weapon x1 5899 | -7/Factory | Identified exit to DSF 5990 | -7/Factory | Entered DSF 6026 | -7/DSF | Additional patrols routed to DSF 6148 | -7/DSF | Sterilization system engaged 6168 | -7/DSF | Ambient heat levels rising (+10) 6170 | -7/DSF | Destroyed 7 combat bots 6183 | -7/DSF | Ambient heat levels rising (+10) 6198 | -7/DSF | Ambient heat levels rising (+10) 6213 | -7/DSF | Ambient heat levels rising (+10) 6228 | -7/DSF | Ambient heat levels rising (+10) 6242 | -7/DSF | Discovered new exit (range 14) 6243 | -7/DSF | Ambient heat levels rising (+10) 6258 | -7/DSF | Ambient heat levels rising (+10) 6273 | -7/DSF | Ambient heat levels rising (+10) 6288 | -7/DSF | Ambient heat levels rising (+10) 6288 | -7/DSF | Entered Factory 6288 | -6/Factory | Evolved 2 slots: Utility x2 7412 | -6/Factory | Garrison activated, responded to threat 7648 | -6/Factory | Build established: Mutant 7773 | -6/Factory | Destroyed 7 combat bots 8418 | -6/Factory | Lost 3 parts (3n) 8488 | -6/Factory | Identified exit to Garrison 8488 | -6/Factory | Entered Garrison 8598 | -6/Garrison | Triggered checkpoint 8623 | -6/Garrison | Discovered new exit (range 5) 8684 | -6/Garrison | Triggered checkpoint 8698 | -6/Garrison | Triggered checkpoint 8790 | -6/Garrison | Discovered new exit (range 15) 8876 | -6/Garrison | Triggered checkpoint 9000 | -6/Garrison | Garrison Relay disabled 9157 | -6/Garrison | Spotted Executioner 9380 | -6/Garrison | Triggered checkpoint 9384 | -6/Garrison | Triggered checkpoint 9392 | -6/Garrison | Garrison Relay disabled 9408 | -6/Garrison | Garrison Relay disabled 9443 | -6/Garrison | Discovered new exit (range 6) 9494 | -6/Garrison | Rescued a captive Derelict 9494 | -6/Garrison | Rescued a captive Derelict 9594 | -6/Garrison | Triggered checkpoint 9741 | -6/Garrison | Entered Factory 9741 | -5/Factory | Evolved 2 slots: Utility x2 10041 | -5/Factory | First assault squad dispatched 10055 | -5/Factory | Discovered new exit (range 8) 10069 | -5/Factory | Entered another Factory area 10069 | -4/Factory | Evolved 2 slots: Power x1, Propulsion x1 10345 | -4/Factory | Spotted B-86 Titan 10353 | -4/Factory | Destroyed B-86 Titan 10442 | -4/Factory | Discovered new exit (range 5) 10451 | -4/Factory | Entered Upper Caves 10458 | -4/Upper Caves | Met a Warlord Commander 10459 | -4/Upper Caves | Learned location of Warlord (-4) 10460 | -4/Upper Caves | Warlord Commander delivered Encrypted Comm Array 10673 | -4/Upper Caves | Build established: Tank 10800 | -4/Upper Caves | Attracted the attention of an 0b10 checkpoint 10981 | -4/Upper Caves | Learned Research garrison access intel 11463 | -4/Upper Caves | Discovered new exit (range 5) 11490 | -4/Upper Caves | Entered another Upper Caves area 11494 | -4/Upper Caves | Discovered new exit (range 7) 11743 | -4/Upper Caves | Lost 4 parts (2u2w) 11845 | -4/Upper Caves | Learned Research terminal intel 11960 | -4/Upper Caves | Attracted the attention of an 0b10 checkpoint 12012 | -4/Upper Caves | Build established: Derelict-Tank 12154 | -4/Upper Caves | Discovered new exit (range 11) 12182 | -4/Upper Caves | Learned Research trap positions 12200 | -4/Upper Caves | Entered Warlord 12662 | -4/Warlord | Received a Watcher feed algorithm from an ecstatic Tinkerer 12819 | -4/Warlord | Warlord's base attacked by MAIN.C 12841 | -4/Warlord | Found Prototype Energy Cannon 12841 | -4/Warlord | Identified Vortex Cannon 12848 | -4/Warlord | Found Vortex Cannon 12853 | -4/Warlord | Found Prototype Launcher 12981 | -4/Warlord | Met Warlord 13169 | -4/Warlord | Warlord forces counterattacked 13172 | -4/Warlord | Spotted Striker 13192 | -4/Warlord | Destroyed Striker 13216 | -4/Warlord | Lost 3 parts (1p1u1w) 13216 | -4/Warlord | Spotted Striker 13223 | -4/Warlord | Lost 6 allies 13258 | -4/Warlord | Spotted Executioner 13262 | -4/Warlord | Spotted Striker 13274 | -4/Warlord | Destroyed Executioner 13286 | -4/Warlord | P-70 Sage assimilated allied XZ-Y2Y(g) 13319 | -4/Warlord | Spotted Executioner 13359 | -4/Warlord | Discovered new exit (range 11) 13369 | -4/Warlord | Entered Proximity Caves 13387 | -3/Proximity Caves | Lost 27 allies 13507 | -3/Proximity Caves | Ambushed by research squad 13540 | -3/Proximity Caves | Build established: Scavenger-Gunner 13548 | -3/Proximity Caves | Lost 5 parts (3n1u1w) 13745 | -3/Proximity Caves | Lost 6 parts (1p3u2w) 13836 | -3/Proximity Caves | Discovered new exit (range 16) 13853 | -3/Proximity Caves | Entered Research 13853 | -3/Research | Evolved 2 slots: Utility x1, Weapon x1 13854 | -3/Research | Loaded intel: 86 trap records 13855 | -3/Research | Loaded intel: 20 terminal locations 13856 | -3/Research | Loaded intel: 3 garrison access locations 13883 | -3/Research | Lost 4 parts (3n1u) 14030 | -3/Research | Identified exit to Garrison 14030 | -3/Research | Entered Garrison 14043 | -3/Garrison | Discovered new exit (range 31) 14043 | -3/Garrison | Discovered new exit (range 71) 14043 | -3/Garrison | Discovered new exit (range 65) 14088 | -3/Garrison | Triggered checkpoint 14165 | -3/Garrison | Garrison Relay disabled 14285 | -3/Garrison | Triggered checkpoint 14325 | -3/Garrison | Spotted B-86 Titan 14326 | -3/Garrison | Triggered checkpoint 14382 | -3/Garrison | Destroyed B-86 Titan 14414 | -3/Garrison | Found Hvy. Reflective Plating 14549 | -3/Garrison | Spotted B-86 Titan 14575 | -3/Garrison | Destroyed B-86 Titan 14653 | -3/Garrison | Lost 6 parts (4n1u1w) 14686 | -3/Garrison | Triggered checkpoint 14707 | -3/Garrison | Garrison Relay disabled 14853 | -3/Garrison | Triggered checkpoint 14913 | -3/Garrison | Build established: Scavenger-Tank 15057 | -3/Garrison | Lost 3 parts (1n2u) 15158 | -3/Garrison | Lost 3 parts (1n1u1w) 15326 | -3/Garrison | Triggered checkpoint 15341 | -3/Garrison | Garrison Relay disabled 15388 | -3/Garrison | Triggered checkpoint 15489 | -3/Garrison | Garrison Relay disabled 15858 | -3/Garrison | Triggered checkpoint 15982 | -3/Garrison | Triggered checkpoint 16018 | -3/Garrison | Garrison Relay disabled 16046 | -3/Garrison | Entered Research 16296 | -3/Research | First assault squad dispatched 16515 | -3/Research | Self-destructed Last Messages --------------- 16505_ Adv. Phase Shifter destroyed. 16505_ Imp. Deuterium Engine destroyed. 16505_ Penetrated by Slug. 16505_ Slug penetrates Terminal. 16508_ R-10 Processor destroyed. 16508_ Switching to secondary target: H-77 Assassin. 16509_ Extracted 24 energy. 16509_ Penetrated by Slug. 16509_ Med. Treads destroyed. 16509_ U-05 Engineer builds a Door. 16511_ Penetrated by Slug. 16511_ Particle Reactor destroyed. 16511_ Slug penetrates Wall. 16512_ Penetrated by Slug. 16512_ Slug penetrates Terminal. 16513_ U-05 Engineer builds a Door. 16514_ System corrupted: Component data lost. 16515_ Slug penetrates Door. 16515_ Slug penetrates Wall. Map ----- +----------------------------------------------------+ | #?????????? #????????????????????????????????? | | #????????? #????????????????????????????????? | | #?????????" #????????????????????????????????? | | #????????"" ! #????????????????????????????????? | | ########?"" #????????????????????????????????? | | # #????????????????????????????????? | | # ]#????????????????????????????????? | | + * #????????????????????????????????? | | # #????????????g???????????????????? | | ############??????????g???????????????????? | | !! # #???????? ??????h??????????????? | | ! # #???????? ??? ???????????????? | | + #??????##+####hw ?????????????? | | # #?????? g #????????????? | | # #?????? g #????????????? | | * # #?????? #????????????? | | # #?????# h T "????????????? | | ##########"#?????# % "????????????? | | """ [#????????# #?????# ! T"???????????? | | """ [##?############### ""???????????? | | """ % #?# ""???????????? | | #?# h #????????????? | | / #?# =!* #????????????? | | #?# %%% #????????????? | | #### #?# ##########+########???????????????? | | ???# #?# #????# %[@[= #??????????????????? | | #### ### #????# %*=*] #??????????????????? | | # #????# = #??????????????????? | | # #????# #??????????????????? | | # #????# "" " #??????????????????? | | # #???# "" "" #??????????????????? | | ####+######+#####??## #??????????????????? | | # #???# = #??????????????????? | | " #???###########??????????????????? | | # "" #????????????????????????????????? | | !!= #""" #????????????????????????????????? | | !! #"F #????????????????????????????????? | | != #""" #????????????????????????????????? | | # "" #????????????????????????????????? | | # #????????????????????????????????? | | ######## #????????????????????????????????? | | ???????##########????????????????????????????????? | | ?????????????????????????????????????????????????? | | ?????????????????????????????????????????????????? | | ?????????????????????????????????????????????????? | | ?????????????????????????????????????????????????? | | ?????????????????????????????????????????????????? | | ?????????????????????????????????????????????????? | | ?????????????????????????????????????????????????? | | ?????????????????????????????????????????????????? | +----------------------------------------------------+ Best States ------------- Heat Dissipation 115 Energy Generation 41 Energy Capacity 2080 Matter Stores 302 Matter Capacity 400 Sight Range 16 Robot Scan Range 20 Terrain Scan Range 20 Terrain Scan Density 10 Base Temperature (-) 100 Armor Coverage 1200 Resistance: KI 25 Resistance: TH 30 Phase Shifting 15 Evasion (%) 65 Targeting Accuracy 8 Core Analysis 6 Recoil Reduction 6 Energy Filtering 30 Particle Charging 20 Offensive Hacking 22 Defensive Hacking 10 Item Schematics ----------------- None Robot Schematics ------------------ None Fabricated ------------ Nothing Repaired ---------- Imp. Ion Engine | 21% | -8/Materials Aluminum Leg | 8% | -8/Materials Studied --------- Aluminum Leg | -8/Materials | Hacked Titanium Leg | -8/Materials | Hacked Alien Tech Used ----------------- None Achievements -------------- Pyromaniac Challenges ------------ None Game ------ Seed MagneticStrikeTrident Manual? 0 Play Time 01:57:08 Cumulative 133.0 hours Start 2026.03.11 @ 19:24:38 End 2026.03.11 @ 21:53:03 Sessions 3 Manual Loads 0 Difficulty Rogue Special Mode None Game No. 146 Rogue 71 Adventurer 75 Explorer 0 Win Type - Total 5 Types 5/0/0/0/0/0/0/0/0/0 Lore% 58 Gallery% 57 Achievement% 47 Wizard Run 0 Options --------- Layout 2 ASCII 0 Keyboard 0 Movement Numpad Keybinds 0 Fullscreen 2 Font 24/Smallcaps Map View 50x44 Zoom Use 0% Tactical HUD 1 Map Filters NONE Filters NONE Steam 1 RUN: 535554f5-d8a6-4dec-b5ee-4d547d4ff490